fUSD/lending_fUSD_20250629
["ID","MTS","AMOUNT","RATE_DAILY","PERIOD"]
[368473689,1751189443157,-1088.6,0.00027397,3]
[368473691,1751189443167,-490.0,0.00027397,3]
[368473693,1751189443177,-490.0,0.00027397,3]
[368473695,1751189443187,-1206.1,0.00027397,3]
[368473697,1751189443197,-490.0,0.00027397,3]
[368473700,1751189443206,-490.0,0.00027397,3]
[368473702,1751189443216,-1771.26,0.00027397,3]
[368473704,1751189443226,-490.0,0.00027397,3]
[368473706,1751189443235,-758.41,0.00027397,3]
[368473708,1751189443245,-258.74733659,0.00027397,3]
[368473710,1751189443256,-490.0,0.00027397,3]
[368473712,1751189443265,-490.0,0.00027397,3]
[368473714,1751189443275,-490.0,0.00027397,3]
[368473716,1751189443285,-490.0,0.00027397,3]
[368473718,1751189443295,-750.9,0.00027397,3]
[368473720,1751189443305,-759.09,0.00027397,3]
[368473722,1751189443315,-1081.38,0.00027397,3]
[368473724,1751189443324,-490.0,0.00027397,3]
[368473726,1751189443334,-490.0,0.00027397,3]
[368473728,1751189443344,-490.0,0.00027397,3]
[368473730,1751189443354,-490.0,0.00027397,3]
[368473732,1751189443364,-490.0,0.00027397,3]
[368473734,1751189443375,-490.0,0.00027397,3]
[368473737,1751189443386,-490.0,0.00027397,3]
[368473739,1751189443396,-490.0,0.00027397,3]
[368473741,1751189443406,-1846.99,0.00027397,3]
[368473743,1751189443416,-490.0,0.00027397,3]
[368473745,1751189443427,-490.0,0.00027397,3]
[368473747,1751189443436,-601.02,0.00027397,3]
[368473749,1751189443446,-685.14,0.00027397,3]
[368473751,1751189443456,-533.04821454,0.00027397,3]
[368473753,1751189443466,-631.32,0.00027397,3]
[368473755,1751189443476,-1984.57,0.00027397,3]
[368473757,1751189443486,-2077.57,0.00027397,3]
[368473759,1751189443496,-490.0,0.00027397,3]
[368473761,1751189443506,-521.7134462,0.00027397,3]
[368473762,1751189443516,-356.75057121,0.00027397,3]
[368473763,1751189443526,-490.0,0.00027397,3]
[368473764,1751189443536,-490.0,0.00027397,3]
[368473765,1751189443546,-490.0,0.00027397,3]
[368473766,1751189443556,-490.0,0.00027397,3]
[368473767,1751189443567,-490.0,0.00027397,3]
[368473793,1751189443578,-592.27,0.00027397,3]
[368473797,1751189443919,-736.11,0.00027397,3]
[368473799,1751189443929,-490.0,0.00027397,3]
[368473801,1751189443939,-1439.96,0.00027397,3]
[368473803,1751189443949,-630.0,0.00027397,3]
[368473805,1751189443958,-490.0,0.00027397,3]
[368473807,1751189443968,-490.0,0.00027397,3]
[368473809,1751189443976,-490.0,0.00027397,3]
[368473811,1751189443986,-490.0,0.00027397,3]
[368473813,1751189443995,-490.0,0.00027397,3]
[368473815,1751189444004,-654.72,0.00027397,3]
[368473817,1751189444013,-490.0,0.00027397,3]
[368473819,1751189444022,-490.0,0.00027397,3]
[368473821,1751189444031,-959.58,0.00027397,3]
[368473823,1751189444040,-490.0,0.00027397,3]
[368473825,1751189444049,-1197.6,0.00027397,3]
[368473827,1751189444058,-980.66,0.00027397,3]
[368473829,1751189444067,-490.0,0.00027397,3]
[368473831,1751189444076,-1680.08,0.00027397,3]
[368473833,1751189444086,-490.0,0.00027397,3]
[368473835,1751189444095,-609.08,0.00027397,3]
[368473837,1751189444104,-490.0,0.00027397,3]
[368473839,1751189444114,-490.0,0.00027397,3]
[368473841,1751189444123,-490.0,0.00027397,3]
[368473843,1751189444132,-490.0,0.00027397,3]
[368473845,1751189444142,-490.0,0.00027397,3]
[368473847,1751189444151,-490.0,0.00027397,3]
[368473849,1751189444160,-1305.23,0.00027397,3]
[368473851,1751189444169,-490.0,0.00027397,3]
[368473853,1751189444179,-490.0,0.00027397,3]
[368473855,1751189444188,-926.84,0.00027397,3]
[368473857,1751189444197,-490.0,0.00027397,3]
[368473859,1751189444206,-490.0,0.00027397,3]
[368473861,1751189444216,-686.36,0.00027397,3]
[368473863,1751189444225,-490.0,0.00027397,3]
[368473865,1751189444235,-490.0,0.00027397,3]
[368473867,1751189444244,-490.0,0.00027397,3]
[368473869,1751189444253,-486.855822,0.00027397,3]
[368473871,1751189444262,-1288.58,0.00027397,3]
[368473873,1751189444271,-490.0,0.00027397,3]
[368473875,1751189444281,-490.0,0.00027397,3]
[368473877,1751189444290,-490.0,0.00027397,3]
[368473879,1751189444300,-490.0,0.00027397,3]
[368473881,1751189444309,-490.0,0.00027397,3]
[368473883,1751189444319,-2790.04,0.00027397,3]
[368473885,1751189444328,-490.0,0.00027397,3]
[368473887,1751189444337,-490.0,0.00027397,3]
[368473889,1751189444347,-537.75,0.00027397,3]
[368473891,1751189444356,-490.0,0.00027397,3]
[368473893,1751189444365,-200.0,0.00027397,2]
[368473895,1751189444375,-1131.39,0.00027397,3]
[368473897,1751189444384,-490.0,0.00027397,3]
[368473899,1751189444394,-1124.79,0.00027397,3]
[368473901,1751189444403,-925.27,0.00027397,3]
[368473903,1751189444412,-490.0,0.00027397,3]
[368473905,1751189444422,-1076.03,0.00027397,3]
[368473907,1751189444431,-490.0,0.00027397,3]
[368473909,1751189444440,-490.0,0.00027397,3]
[368473911,1751189444451,-490.0,0.00027397,3]
[368473913,1751189444459,-493.75,0.00027397,3]
[368473915,1751189444468,-502.65031261,0.00027397,3]
[368473917,1751189444477,-151.750269,0.00027397,3]
[368473919,1751189444487,-490.0,0.00027397,3]
[368473921,1751189444496,-335.01374924,0.00027397,3]
[368473923,1751189444505,-490.0,0.00027397,3]
[368473925,1751189444515,-490.0,0.00027397,3]
[368473927,1751189444524,-490.0,0.00027397,3]
[368473929,1751189444533,-4639.39,0.00027397,3]
[368473931,1751189444542,-2705.95,0.00027397,3]
[368473933,1751189444552,-490.0,0.00027397,3]
[368473935,1751189444561,-1813.81,0.00027397,3]
[368473937,1751189444570,-490.0,0.00027397,3]
[368473939,1751189444579,-490.0,0.00027397,3]
[368473941,1751189444589,-490.0,0.00027397,3]
[368473943,1751189444598,-490.0,0.00027397,3]
[368473945,1751189444607,-490.0,0.00027397,3]
[368473947,1751189444616,-545.33,0.00027397,3]
[368473949,1751189444626,-524.62,0.00027397,3]
[368473951,1751189444635,-1087.87,0.00027397,3]
[368473953,1751189444645,-490.0,0.00027397,3]
[368473955,1751189444654,-490.0,0.00027397,3]
[368473957,1751189444664,-1659.83,0.00027397,3]
[368473959,1751189444674,-490.0,0.00027397,3]
[368473961,1751189444683,-490.0,0.00027397,3]
[368473963,1751189444693,-490.0,0.00027397,3]
[368473965,1751189444703,-490.0,0.00027397,3]
[368473967,1751189444712,-1752.18,0.00027397,3]
[368473969,1751189444722,-490.0,0.00027397,3]
[368473971,1751189444731,-490.0,0.00027397,3]
[368473973,1751189444740,-490.0,0.00027397,3]
[368473975,1751189444750,-490.0,0.00027397,3]
[368473977,1751189444759,-490.0,0.00027397,3]
[368473979,1751189444769,-1469.22,0.00027397,3]
[368473981,1751189444778,-2536.92,0.00027397,3]
[368473983,1751189444788,-579.74,0.00027397,3]
[368473985,1751189444797,-688.45,0.00027397,3]
[368473987,1751189444807,-578.1,0.00027397,3]
[368473990,1751189444816,-2115.71,0.00027397,3]
[368473992,1751189444826,-1151.73,0.00027397,3]
[368473994,1751189444835,-490.0,0.00027397,3]
[368473996,1751189444844,-600.46,0.00027397,3]
[368473998,1751189444855,-490.0,0.00027397,3]
[368474000,1751189444868,-513.22488083,0.00027397,3]
[368474002,1751189444878,-490.0,0.00027397,3]
[368474004,1751189444887,-490.0,0.00027397,3]
[368474006,1751189444896,-490.0,0.00027397,3]
[368474008,1751189444906,-490.0,0.00027397,3]
[368474010,1751189444916,-490.0,0.00027397,3]
[368474012,1751189444925,-490.0,0.00027397,3]
[368474014,1751189444935,-1694.37,0.00027397,3]
[368474016,1751189444945,-490.0,0.00027397,3]
[368474018,1751189444954,-490.0,0.00027397,3]
[368474020,1751189444963,-490.0,0.00027397,3]
[368474022,1751189444972,-878.63,0.00027397,3]
[368474024,1751189444982,-490.0,0.00027397,3]
[368474026,1751189444991,-490.0,0.00027397,3]
[368474028,1751189445000,-737.29,0.00027397,3]
[368474030,1751189445009,-737.29,0.00027397,3]
[368474032,1751189445019,-1348.51,0.00027397,3]
[368474034,1751189445028,-2029.0,0.00027397,3]
[368474036,1751189445037,-490.0,0.00027397,3]
[368474038,1751189445046,-490.0,0.00027397,3]
[368474040,1751189445055,-490.0,0.00027397,3]
[368474042,1751189445064,-490.0,0.00027397,3]
[368474044,1751189445073,-6054.23,0.00027397,3]
[368474046,1751189445085,-635.62,0.00027397,3]
[368474048,1751189445094,-490.0,0.00027397,3]
[368474050,1751189445103,-490.0,0.00027397,3]
[368474052,1751189445113,-2413.55,0.00027397,3]
[368474054,1751189445122,-1240.73,0.00027397,3]
[368474056,1751189445132,-1540.51,0.00027397,3]
[368474058,1751189445142,-454.86656566,0.00027397,3]
[368474060,1751189445151,-3134.38,0.00027397,3]
[368474062,1751189445161,-490.0,0.00027397,3]
[368474064,1751189445172,-490.0,0.00027397,3]
[368474066,1751189445182,-490.0,0.00027397,3]
[368474068,1751189445192,-490.0,0.00027397,3]
[368474070,1751189445201,-1073.81,0.00027397,3]
[368474072,1751189445211,-490.0,0.00027397,3]
[368474074,1751189445221,-1300.54,0.00027397,3]
[368474076,1751189445230,-1759.25,0.00027397,3]
[368474078,1751189445239,-490.0,0.00027397,3]
[368474080,1751189445248,-1670.81,0.00027397,3]
[368474083,1751189445258,-490.0,0.00027397,3]
[368474085,1751189445269,-1517.47,0.00027397,3]
[368474087,1751189445278,-8639.62,0.00027397,3]
[368474089,1751189445288,-813.1,0.00027397,3]
[368474091,1751189445297,-490.0,0.00027397,3]
[368474093,1751189445308,-5159.48,0.00027397,3]
[368474095,1751189445319,-1554.24,0.00027397,3]
[368474097,1751189445329,-490.0,0.00027397,3]
[368474098,1751189445339,-3283.15,0.00027397,3]
[368474100,1751189445348,-490.0,0.00027397,3]
[368474102,1751189445357,-490.0,0.00027397,3]
[368474104,1751189445367,-1860.69,0.00027397,3]
[368474105,1751189445378,-178175.02,0.00027397,3]
[368474107,1751189445387,-490.0,0.00027397,3]
[368474109,1751189445397,-1892.11,0.00027397,3]
[368474111,1751189445407,-490.0,0.00027397,3]
[368474114,1751189445417,-542.59141436,0.00027397,3]
[368474117,1751189445426,-490.0,0.00027397,3]
[368474118,1751189445436,-1871.0,0.00027397,3]
[368474120,1751189445446,-502.91,0.00027397,3]
[368474122,1751189445455,-490.0,0.00027397,3]
[368474124,1751189445464,-490.0,0.00027397,3]
[368474126,1751189445474,-627.07,0.00027397,3]
[368474127,1751189445483,-490.0,0.00027397,3]
[368474129,1751189445493,-1068.6,0.00027397,3]
[368474131,1751189445502,-3235.85,0.00027397,3]
[368474133,1751189445511,-3212.36,0.00027397,3]
[368474134,1751189445520,-490.0,0.00027397,3]
[368474136,1751189445530,-5417.35,0.00027397,3]
[368474138,1751189445539,-490.0,0.00027397,3]
[368474140,1751189445549,-771.92,0.00027397,3]
[368474141,1751189445558,-5308.46,0.00027397,3]
[368474143,1751189445567,-490.0,0.00027397,3]
[368474145,1751189445577,-490.0,0.00027397,3]
[368474147,1751189445588,-490.0,0.00027397,3]
[368474149,1751189445597,-490.0,0.00027397,3]
[368474150,1751189445606,-505.72635811,0.00027397,3]
[368474152,1751189445616,-1407.43,0.00027397,3]
[368474154,1751189445626,-490.0,0.00027397,3]
[368474156,1751189445635,-1270.52,0.00027397,3]
[368474158,1751189445645,-490.0,0.00027397,3]
[368474159,1751189445654,-4713.51,0.00027397,3]
[368474161,1751189445664,-490.0,0.00027397,3]
[368474163,1751189445673,-500.0,0.00027397,3]
[368474165,1751189445683,-500.0,0.00027397,3]
[368474167,1751189445692,-500.0,0.00027397,3]
[368474169,1751189445701,-500.0,0.00027397,3]
[368474171,1751189445711,-490.0,0.00027397,3]
[368474172,1751189445721,-5070.98,0.00027397,3]
[368474174,1751189445731,-490.0,0.00027397,3]
[368474176,1751189445740,-1695.89,0.00027397,3]
[368474178,1751189445749,-490.0,0.00027397,3]
[368474180,1751189445759,-2831.77,0.00027397,3]
[368474181,1751189445768,-2582.95,0.00027397,3]
[368474183,1751189445778,-897.74,0.00027397,3]
[368474185,1751189445789,-490.0,0.00027397,3]
[368474187,1751189445798,-3310.0,0.00027397,3]
[368474188,1751189445807,-1704.89,0.00027397,3]
[368474190,1751189445817,-490.0,0.00027397,3]
[368474192,1751189445826,-848.8,0.00027397,3]
[368474194,1751189445836,-1343.76,0.00027397,3]
[368474196,1751189445845,-490.0,0.00027397,3]
[368474198,1751189445855,-2530.55,0.00027397,3]
[368474200,1751189445867,-2273.22,0.00027397,3]
[368474202,1751189445877,-1515.09,0.00027397,3]
[368474203,1751189445886,-490.0,0.00027397,3]
[368474205,1751189445896,-165.46705004,0.00027397,3]
[368474207,1751189445907,-385.39800892,0.00027397,3]
[368474209,1751189445917,-490.0,0.00027397,3]
[368474210,1751189445926,-3600.89,0.00027397,3]
[368474212,1751189445937,-490.0,0.00027397,3]
[368474214,1751189445947,-2664.11,0.00027397,3]
[368474216,1751189445956,-4295.06,0.00027397,3]
[368474218,1751189445965,-490.0,0.00027397,3]
[368474220,1751189445975,-1280.17,0.00027397,3]
[368474222,1751189445984,-724.5,0.00027397,3]
[368474223,1751189445993,-2076.16,0.00027397,3]
[368474225,1751189446003,-1658.63,0.00027397,3]
[368474227,1751189446012,-490.0,0.00027397,3]
[368474229,1751189446021,-2192.18,0.00027397,3]
[368474231,1751189446030,-1860.56,0.00027397,3]
[368474233,1751189446039,-1687.23,0.00027397,3]
[368474235,1751189446048,-1377.41,0.00027397,3]
[368474236,1751189446058,-490.0,0.00027397,3]
[368474238,1751189446067,-490.0,0.00027397,3]
[368474240,1751189446077,-490.0,0.00027397,3]
[368474242,1751189446086,-499.56,0.00027397,3]
[368474244,1751189446096,-490.0,0.00027397,3]
[368474246,1751189446106,-3889.69,0.00027397,3]
[368474248,1751189446116,-490.0,0.00027397,3]
[368474250,1751189446126,-520.60775019,0.00027397,3]
[368474252,1751189446135,-21657.64,0.00027397,3]
[368474253,1751189446145,-443.10400813,0.00027397,3]
[368474255,1751189446155,-2469.4,0.00027397,3]
[368474257,1751189446164,-1928.44,0.00027397,3]
[368474270,1751189446280,-2791.01,0.00027397,3]
[368474272,1751189446289,-1878.64,0.00027397,3]
[368474274,1751189446299,-490.0,0.00027397,3]
[368474276,1751189446308,-2638.52,0.00027397,3]
[368474278,1751189446318,-4731.62,0.00027397,3]
[368474280,1751189446327,-490.0,0.00027397,3]
[368474281,1751189446336,-490.0,0.00027397,3]
[368474283,1751189446345,-490.0,0.00027397,3]
[368474285,1751189446355,-490.0,0.00027397,3]
[368474287,1751189446364,-490.0,0.00027397,3]
[368474289,1751189446373,-7724.0,0.00027397,3]
[368474291,1751189446383,-1149.76,0.00027397,3]
[368474293,1751189446392,-1281.41,0.00027397,3]
[368474295,1751189446401,-2260.24,0.00027397,3]
[368474296,1751189446410,-490.0,0.00027397,3]
[368474298,1751189446419,-2732.79,0.00027397,3]
[368474300,1751189446429,-490.0,0.00027397,3]
[368474302,1751189446439,-1943.65,0.00027397,3]
[368474304,1751189446448,-847.37,0.00027397,3]
[368474306,1751189446457,-490.0,0.00027397,3]
[368474307,1751189446466,-490.0,0.00027397,3]
[368474309,1751189446475,-1182.05,0.00027397,3]
[368474311,1751189446484,-4094.76,0.00027397,3]
[368474313,1751189446493,-490.0,0.00027397,3]
[368474314,1751189446502,-490.0,0.00027397,3]
[368474316,1751189446510,-1669.82,0.00027397,3]
[368474318,1751189446520,-490.0,0.00027397,3]
[368474320,1751189446529,-490.0,0.00027397,3]
[368474322,1751189446538,-1564.06,0.00027397,3]
[368474324,1751189446547,-490.0,0.00027397,3]
[368474326,1751189446556,-490.0,0.00027397,3]
[368474327,1751189446565,-490.0,0.00027397,3]
[368474329,1751189446574,-994.86,0.00027397,3]
[368474331,1751189446583,-490.0,0.00027397,3]
[368474333,1751189446591,-490.0,0.00027397,3]
[368474335,1751189446601,-8867.72,0.00027397,3]
[368474337,1751189446610,-3358.35,0.00027397,3]
[368474339,1751189446619,-1642.99,0.00027397,3]
[368474340,1751189446628,-490.0,0.00027397,3]
[368474342,1751189446638,-1861.14,0.00027397,3]
[368474344,1751189446647,-863.46,0.00027397,3]
[368474346,1751189446656,-490.0,0.00027397,3]
[368474348,1751189446665,-3023.19,0.00027397,3]
[368474350,1751189446674,-2864.14,0.00027397,3]
[368474352,1751189446683,-4054.05,0.00027397,3]
[368474353,1751189446693,-490.0,0.00027397,3]
[368474355,1751189446703,-2811.82,0.00027397,3]
[368474357,1751189446712,-4177.09,0.00027397,3]
[368474359,1751189446721,-625.49,0.00027397,3]
[368474361,1751189446731,-490.0,0.00027397,3]
[368474363,1751189446740,-833.42,0.00027397,3]
[368474365,1751189446749,-490.0,0.00027397,3]
[368474366,1751189446758,-490.0,0.00027397,3]
[368474368,1751189446767,-490.0,0.00027397,3]
[368474370,1751189446776,-490.0,0.00027397,3]
[368474372,1751189446786,-1431.99,0.00027397,3]
[368474374,1751189446795,-1959.2,0.00027397,3]
[368474376,1751189446804,-2399.08,0.00027397,3]
[368474378,1751189446813,-1174.99,0.00027397,3]
[368474379,1751189446823,-490.0,0.00027397,3]
[368474381,1751189446833,-221.01882731,0.00027397,3]
[368474383,1751189446842,-1626.5,0.00027397,3]
[368474385,1751189446852,-1212.44,0.00027397,3]
[368474387,1751189446864,-1906.14,0.00027397,3]
[368474389,1751189446877,-5689.69,0.00027397,3]
[368474390,1751189446886,-490.0,0.00027397,3]
[368474392,1751189446896,-1497.21,0.00027397,3]
[368474394,1751189446906,-967.43,0.00027397,3]
[368474396,1751189446915,-490.0,0.00027397,3]
[368474398,1751189446925,-5409.01,0.00027397,3]
[368474400,1751189446934,-1070.83,0.00027397,3]
[368474402,1751189446943,-2173.75,0.00027397,3]
[368474403,1751189446953,-490.0,0.00027397,3]
[368474405,1751189446962,-490.0,0.00027397,3]
[368474407,1751189446971,-1252.74,0.00027397,3]
[368474409,1751189446980,-4227.21,0.00027397,3]
[368474411,1751189446990,-499.66127289,0.00027397,3]
[368474413,1751189446999,-490.0,0.00027397,3]
[368474414,1751189447009,-5889.66,0.00027397,3]
[368474416,1751189447019,-490.0,0.00027397,3]
[368474418,1751189447028,-4687.04,0.00027397,3]
[368474420,1751189447038,-1288.56,0.00027397,3]
[368474422,1751189447047,-845.86,0.00027397,3]
[368474424,1751189447057,-490.0,0.00027397,3]
[368474426,1751189447066,-517.32,0.00027397,3]
[368474428,1751189447075,-490.0,0.00027397,3]
[368474430,1751189447084,-452.22817529,0.00027397,3]
[368474431,1751189447093,-799.14,0.00027397,3]
[368474433,1751189447102,-490.0,0.00027397,3]
[368474435,1751189447112,-490.0,0.00027397,3]
[368474437,1751189447121,-994.15,0.00027397,3]
[368474439,1751189447131,-490.0,0.00027397,3]
[368474441,1751189447140,-2552.12,0.00027397,3]
[368474443,1751189447150,-490.0,0.00027397,3]
[368474444,1751189447159,-1583.68,0.00027397,3]
[368474446,1751189447169,-2076.18,0.00027397,3]
[368474448,1751189447178,-3873.59,0.00027397,3]
[368474450,1751189447187,-11047.16,0.00027397,3]
[368474452,1751189447196,-490.0,0.00027397,3]
[368474454,1751189447206,-1813.96,0.00027397,3]
[368474456,1751189447215,-2942.99,0.00027397,3]
[368474457,1751189447224,-2251.42,0.00027397,3]
[368474459,1751189447233,-490.0,0.00027397,3]
[368474461,1751189447243,-2172.71,0.00027397,3]
[368474463,1751189447252,-490.0,0.00027397,3]
[368474465,1751189447261,-490.0,0.00027397,3]
[368474467,1751189447271,-2182.32,0.00027397,3]
[368474468,1751189447280,-2778.13,0.00027397,3]
[368474469,1751189447289,-3417.13,0.00027397,3]
[368474470,1751189447299,-714.0,0.00027397,3]
[368474471,1751189447309,-1663.2,0.00027397,3]
[368474472,1751189447319,-490.0,0.00027397,3]
[368474473,1751189447329,-1404.86,0.00027397,3]
[368474474,1751189447339,-2381.16,0.00027397,3]
[368474475,1751189447348,-2307.12,0.00027397,3]
[368474476,1751189447358,-1922.2,0.00027397,3]
[368474477,1751189447368,-1602.27,0.00027397,3]
[368474478,1751189447378,-1208.44,0.00027397,3]
[368474479,1751189447387,-490.0,0.00027397,3]
[368474480,1751189447396,-2544.75,0.00027397,3]
[368474481,1751189447405,-490.0,0.00027397,3]
[368474482,1751189447415,-2971.24,0.00027397,3]
[368474483,1751189447425,-2482.9,0.00027397,3]
[368474484,1751189447434,-1562.59,0.00027397,3]
[368474485,1751189447443,-490.0,0.00027397,3]
[368474486,1751189447452,-611.91,0.00027397,3]
[368474487,1751189447461,-490.0,0.00027397,3]
[368474488,1751189447471,-490.0,0.00027397,3]
[368474490,1751189447480,-1663.98,0.00027397,3]
[368474492,1751189447490,-506.14,0.00027397,3]
[368474493,1751189447500,-500.0,0.00027397,3]
[368474495,1751189447510,-1990.19,0.00027397,3]
[368474497,1751189447519,-490.0,0.00027397,3]
[368474499,1751189447528,-500.0,0.00027397,3]
[368474501,1751189447538,-500.0,0.00027397,3]
[368474503,1751189447547,-500.0,0.00027397,3]
[368474505,1751189447556,-490.0,0.00027397,3]
[368474507,1751189447565,-490.0,0.00027397,3]
[368474509,1751189447574,-490.0,0.00027397,3]
[368474511,1751189447583,-3059.17,0.00027397,3]
[368474513,1751189447592,-490.0,0.00027397,3]
[368474515,1751189447601,-1945.39,0.00027397,3]
[368474517,1751189447611,-490.0,0.00027397,3]
[368474519,1751189447620,-537.75,0.00027397,3]
[368474521,1751189447630,-490.0,0.00027397,3]
[368474523,1751189447639,-1673.43,0.00027397,3]
[368474525,1751189447648,-490.0,0.00027397,3]
[368474527,1751189447657,-4122.47,0.00027397,3]
[368474529,1751189447667,-883.95,0.00027397,3]
[368474531,1751189447676,-490.0,0.00027397,3]
[368474533,1751189447685,-490.0,0.00027397,3]
[368474535,1751189447694,-1883.24,0.00027397,3]
[368474537,1751189447703,-2903.84,0.00027397,3]
[368474539,1751189447713,-490.0,0.00027397,3]
[368474541,1751189447722,-490.0,0.00027397,3]
[368474543,1751189447731,-490.0,0.00027397,3]
[368474545,1751189447740,-1075.76,0.00027397,3]
[368474547,1751189447750,-2086.15,0.00027397,3]
[368474549,1751189447760,-2400.12,0.00027397,3]
[368474551,1751189447769,-4515.57,0.00027397,3]
[368474553,1751189447778,-2447.74,0.00027397,3]
[368474555,1751189447787,-490.0,0.00027397,3]
[368474557,1751189447797,-1923.7,0.00027397,3]
[368474559,1751189447806,-496.93630279,0.00027397,3]
[368474561,1751189447815,-1564.07,0.00027397,3]
[368474563,1751189447825,-14014.5,0.00027397,3]
[368474565,1751189447834,-490.0,0.00027397,3]
[368474567,1751189447843,-3865.81,0.00027397,3]
[368474569,1751189447852,-490.0,0.00027397,3]
[368474571,1751189447861,-3004.92,0.00027397,3]
[368474573,1751189447874,-1321.0,0.00027397,3]
[368474575,1751189447884,-1666.18,0.00027397,3]
[368474577,1751189447893,-490.0,0.00027397,3]
[368474579,1751189447903,-490.0,0.00027397,3]
[368474581,1751189447913,-668.73,0.00027397,3]
[368474583,1751189447922,-2780.99,0.00027397,3]
[368474585,1751189447932,-490.0,0.00027397,3]
[368474587,1751189447942,-490.0,0.00027397,3]
[368474589,1751189447951,-2017.46,0.00027397,3]
[368474591,1751189447961,-1030.63,0.00027397,3]
[368474593,1751189447970,-490.0,0.00027397,3]
[368474595,1751189447980,-490.0,0.00027397,3]
[368474597,1751189447989,-1877.58,0.00027397,3]
[368474599,1751189447999,-2028.91,0.00027397,3]
[368474601,1751189448008,-992.09,0.00027397,3]
[368474603,1751189448017,-490.0,0.00027397,3]
[368474605,1751189448026,-2691.62,0.00027397,3]
[368474607,1751189448036,-978.52,0.00027397,3]
[368474609,1751189448046,-376.88608412,0.00027397,3]
[368474611,1751189448055,-16085.77,0.00027397,3]
[368474613,1751189448065,-490.0,0.00027397,3]
[368474615,1751189448076,-490.0,0.00027397,3]
[368474617,1751189448085,-2803.25,0.00027397,3]
[368474619,1751189448094,-490.0,0.00027397,3]
[368474621,1751189448102,-1276.33,0.00027397,3]
[368474623,1751189448111,-2955.85,0.00027397,3]
[368474625,1751189448120,-490.0,0.00027397,3]
[368474627,1751189448130,-5434.91,0.00027397,3]
[368474629,1751189448140,-490.0,0.00027397,3]
[368474631,1751189448149,-1387.9,0.00027397,3]
[368474633,1751189448159,-515.66,0.00027397,3]
[368474635,1751189448168,-28203.31,0.00027397,3]
[368474637,1751189448177,-1841.28,0.00027397,3]
[368474639,1751189448187,-490.0,0.00027397,3]
[368474641,1751189448196,-4635.15,0.00027397,3]
[368474643,1751189448205,-1332.27,0.00027397,3]
[368474645,1751189448214,-490.0,0.00027397,3]
[368474647,1751189448224,-7406.74,0.00027397,3]
[368474649,1751189448234,-490.0,0.00027397,3]
[368474651,1751189448244,-8062.51,0.00027397,3]
[368474653,1751189448254,-22271.16,0.00027397,3]
[368474655,1751189448263,-490.0,0.00027397,3]
[368474657,1751189448272,-490.0,0.00027397,3]
[368474659,1751189448281,-490.0,0.00027397,3]
[368474661,1751189448290,-494.58364764,0.00027397,3]
[368474663,1751189448299,-490.0,0.00027397,3]
[368474665,1751189448309,-2790.33,0.00027397,3]
[368474667,1751189448318,-1126.58,0.00027397,3]
[368474669,1751189448328,-837.73,0.00027397,3]
[368474671,1751189448337,-2128.96,0.00027397,3]